[Event "*** SCC Grand Prix: Titled Tuesday Blitz"]
[Site "Chess.com"]
[Date "2020.07.14"]
[Round "2"]
[White "Skatchkov_V"]
[Black "wonderfultime"]
[Result "0-1"]
[WhiteElo "2565"]
[BlackElo "2960"]
[TimeControl "180+1"]
[EndTime "10:18:31 PDT"]
[Termination "wonderfultime won on time"]

1. Nf3 {[%clk 0:02:05.4]} 1... Nf6 {[%clk 0:02:59.2]} 2. g3 {[%clk 0:02:06.3]}
2... c5 {[%clk 0:02:55.4]} 3. Bg2 {[%clk 0:02:06.2]} 3... g6 {[%clk 0:02:55.8]}
4. O-O {[%clk 0:02:05.7]} 4... Bg7 {[%clk 0:02:56.4]} 5. c3 {[%clk 0:02:02.4]}
5... O-O {[%clk 0:02:54.1]} 6. d4 {[%clk 0:02:02.4]} 6... d6 {[%clk 0:02:54.6]}
7. Na3 {[%clk 0:01:58.1]} 7... Nbd7 {[%clk 0:02:47.3]} 8. Nc2 {[%clk 0:01:58.8]}
8... Rb8 {[%clk 0:02:44.8]} 9. Re1 {[%clk 0:01:58.4]} 9... Ne4 {[%clk 0:02:23]}
10. Ng5 {[%clk 0:01:39.5]} 10... Nxg5 {[%clk 0:02:18.9]} 11. Bxg5 {[%clk
0:01:40.4]} 11... h6 {[%clk 0:02:19.1]} 12. Bf4 {[%clk 0:01:32.6]} 12... b5
{[%clk 0:02:07.4]} 13. e4 {[%clk 0:01:32.7]} 13... Bb7 {[%clk 0:01:57.6]} 14.
Qd2 {[%clk 0:01:31.9]} 14... Kh7 {[%clk 0:01:53]} 15. Rad1 {[%clk 0:01:32.3]}
15... cxd4 {[%clk 0:01:49.9]} 16. cxd4 {[%clk 0:01:25.8]} 16... Rc8 {[%clk
0:01:50.4]} 17. Be3 {[%clk 0:01:13.2]} 17... Nb6 {[%clk 0:01:46.2]} 18. b3
{[%clk 0:01:12.5]} 18... Qc7 {[%clk 0:01:41.8]} 19. Rc1 {[%clk 0:01:11.2]} 19...
Qc3 {[%clk 0:01:41]} 20. Qe2 {[%clk 0:00:55.7]} 20... Qb2 {[%clk 0:01:36.4]} 21.
Qd3 {[%clk 0:00:26]} 21... Rc3 {[%clk 0:01:35.4]} 22. Qd2 {[%clk 0:00:06.8]}
22... Rfc8 {[%clk 0:01:35.6]} 23. Nb4 {[%clk 0:00:07.1]} 23... Rxc1 {[%clk
0:01:26.4]} 24. Rxc1 {[%clk 0:00:07]} 24... Rxc1+ {[%clk 0:01:12.3]} 25. Qxc1
{[%clk 0:00:07.9]} 25... Qxc1+ {[%clk 0:01:12.7]} 26. Bxc1 {[%clk 0:00:08.8]}
26... Bxd4 {[%clk 0:01:13.6]} 27. Kf1 {[%clk 0:00:08.9]} 27... a5 {[%clk
0:01:11.2]} 28. Nc2 {[%clk 0:00:09.3]} 28... Bc3 {[%clk 0:01:11.7]} 29. f3
{[%clk 0:00:09.6]} 29... Nd7 {[%clk 0:01:09.6]} 30. Ke2 {[%clk 0:00:09.3]} 30...
b4 {[%clk 0:01:09.9]} 31. Kd1 {[%clk 0:00:09.3]} 31... Nc5 {[%clk 0:01:08.4]}
32. Be3 {[%clk 0:00:09.1]} 32... f5 {[%clk 0:01:04.6]} 33. exf5 {[%clk
0:00:07.1]} 33... gxf5 {[%clk 0:01:05.5]} 34. Nd4 {[%clk 0:00:06.3]} 34... Kg6
{[%clk 0:01:01.4]} 35. Nb5 {[%clk 0:00:06.1]} 35... Bf6 {[%clk 0:00:50.6]} 36.
Nd4 {[%clk 0:00:04.8]} 36... a4 {[%clk 0:00:46.1]} 37. Ke2 {[%clk 0:00:04.7]}
37... Bd5 {[%clk 0:00:44.8]} 38. Bh3 {[%clk 0:00:03.7]} 38... e6 {[%clk
0:00:44.5]} 39. bxa4 {[%clk 0:00:03]} 39... Nxa4 {[%clk 0:00:44.3]} 40. Nc2
{[%clk 0:00:02.1]} 40... Nc3+ {[%clk 0:00:44.3]} 41. Kd2 {[%clk 0:00:02]} 41...
Nxa2 {[%clk 0:00:45.2]} 42. g4 {[%clk 0:00:01.7]} 42... b3 {[%clk 0:00:45.2]}
43. Na3 {[%clk 0:00:02.1]} 43... Bc3+ {[%clk 0:00:44.7]} 44. Kd3 {[%clk
0:00:02]} 44... fxg4 {[%clk 0:00:45.6]} 45. Bxg4 {[%clk 0:00:02.1]} 45... Be5
{[%clk 0:00:46]} 46. f4 {[%clk 0:00:02.1]} 46... Bf6 {[%clk 0:00:44.4]} 47. Bd1
{[%clk 0:00:02.7]} 47... Nb4+ {[%clk 0:00:42.4]} 48. Kd2 {[%clk 0:00:03.6]}
48... b2 {[%clk 0:00:43]} 49. Be2 {[%clk 0:00:01.4]} 49... Be4 {[%clk
0:00:41.5]} 50. f5+ {[%clk 0:00:01.2]} 50... Bxf5 {[%clk 0:00:41.7]} 0-1

[Event "*** SCC Grand Prix: Titled Tuesday Blitz"]
[Site "Chess.com"]
[Date "2020.07.14"]
[Round "2"]
[White "ChessicallyInclined"]
[Black "praveenb2002"]
[Result "1-0"]
[WhiteElo "2496"]
[BlackElo "2721"]
[TimeControl "180+1"]
[EndTime "10:18:32 PDT"]
[Termination "ChessicallyInclined won by resignation"]

1. d4 {[%clk 0:03:00.9]} 1... Nf6 {[%clk 0:02:57.1]} 2. c4 {[%clk 0:03:00.8]}
2... g6 {[%clk 0:02:57.1]} 3. Nc3 {[%clk 0:03:01.1]} 3... Bg7 {[%clk 0:02:57.1]}
4. e4 {[%clk 0:03:01.4]} 4... d6 {[%clk 0:02:56.1]} 5. f3 {[%clk 0:03:01.6]}
5... O-O {[%clk 0:02:55.4]} 6. Be3 {[%clk 0:03:02.1]} 6... c5 {[%clk 0:02:51.1]}
7. Nge2 {[%clk 0:03:02]} 7... Nc6 {[%clk 0:02:51.3]} 8. d5 {[%clk 0:03:02.2]}
8... Ne5 {[%clk 0:02:50.7]} 9. Ng3 {[%clk 0:03:02.5]} 9... e6 {[%clk 0:02:48.2]}
10. Be2 {[%clk 0:03:02.6]} 10... exd5 {[%clk 0:02:48.4]} 11. cxd5 {[%clk
0:03:03.5]} 11... a6 {[%clk 0:02:47]} 12. a4 {[%clk 0:03:02.4]} 12... Bd7 {[%clk
0:02:47]} 13. O-O {[%clk 0:02:59.9]} 13... b5 {[%clk 0:02:44.2]} 14. h3 {[%clk
0:02:51]} 14... Rb8 {[%clk 0:02:31]} 15. axb5 {[%clk 0:02:48.7]} 15... axb5
{[%clk 0:02:31]} 16. f4 {[%clk 0:02:48.7]} 16... Nc4 {[%clk 0:02:29.1]} 17. Bxc4
{[%clk 0:02:49]} 17... bxc4 {[%clk 0:02:30]} 18. e5 {[%clk 0:02:49.7]} 18... Ne8
{[%clk 0:02:23.9]} 19. Qe2 {[%clk 0:02:31.8]} 19... Qc7 {[%clk 0:02:12.5]} 20.
Nge4 {[%clk 0:02:24.5]} 20... f5 {[%clk 0:01:56]} 21. exd6 {[%clk 0:02:06.9]}
21... Nxd6 {[%clk 0:01:55.9]} 22. Nxc5 {[%clk 0:02:07.3]} 22... Rfe8 {[%clk
0:01:53.9]} 23. Na6 {[%clk 0:01:39.7]} 23... Rxe3 {[%clk 0:01:18.1]} 24. Qxe3
{[%clk 0:01:32.5]} 24... Qb6 {[%clk 0:01:18.6]} 25. Qxb6 {[%clk 0:01:19.6]}
25... Rxb6 {[%clk 0:01:19.5]} 26. Ra2 {[%clk 0:01:03.2]} 26... Ne4 {[%clk
0:01:05.3]} 27. Nxe4 {[%clk 0:00:53.2]} 27... fxe4 {[%clk 0:01:06.2]} 28. Rc1
{[%clk 0:00:42.6]} 28... Bd4+ {[%clk 0:00:52.4]} 29. Kf1 {[%clk 0:00:42.9]}
29... Bxb2 {[%clk 0:00:47.8]} 30. Rc2 {[%clk 0:00:24.1]} 30... c3 {[%clk
0:00:47.9]} 31. Nc5 {[%clk 0:00:22.8]} 31... Bb5+ {[%clk 0:00:48.2]} 32. Ke1
{[%clk 0:00:20.9]} 32... Bd3 {[%clk 0:00:48.4]} 33. Kd1 {[%clk 0:00:19.4]} 33...
Rb5 {[%clk 0:00:39]} 34. Na4 {[%clk 0:00:09.5]} 34... Rxd5 {[%clk 0:00:23.2]}
35. Nxb2 {[%clk 0:00:09.8]} 35... Bc4+ {[%clk 0:00:13.1]} 36. Kc1 {[%clk
0:00:09.4]} 36... cxb2+ {[%clk 0:00:10.4]} 37. Raxb2 {[%clk 0:00:09.3]} 37...
Bd3 {[%clk 0:00:09.4]} 38. Rc7 {[%clk 0:00:08.5]} 38... Rd8 {[%clk 0:00:08.8]}
39. Kd2 {[%clk 0:00:06.3]} 39... Ba6+ {[%clk 0:00:06.6]} 40. Ke3 {[%clk
0:00:06.4]} 40... Bd3 {[%clk 0:00:06.9]} 41. Rbb7 {[%clk 0:00:06.3]} 41... h5
{[%clk 0:00:06.8]} 42. Rg7+ {[%clk 0:00:06.5]} 42... Kf8 {[%clk 0:00:07.4]} 43.
Rh7 {[%clk 0:00:07]} 43... Kg8 {[%clk 0:00:07.5]} 44. Rbg7+ {[%clk 0:00:07.5]}
44... Kf8 {[%clk 0:00:08]} 45. Rxg6 {[%clk 0:00:08.1]} 45... Bc2 {[%clk
0:00:07.2]} 46. Rh8+ {[%clk 0:00:07.9]} 46... Kf7 {[%clk 0:00:07.8]} 47. Rxd8
{[%clk 0:00:07.7]} 47... Kxg6 {[%clk 0:00:08.3]} 48. g4 {[%clk 0:00:07.9]} 48...
hxg4 {[%clk 0:00:08.5]} 49. hxg4 {[%clk 0:00:08.8]} 49... Kf6 {[%clk 0:00:09.1]}
50. Rd6+ {[%clk 0:00:09]} 50... Ke7 {[%clk 0:00:09.5]} 51. Rb6 {[%clk
0:00:09.6]} 51... Kf7 {[%clk 0:00:09.8]} 52. Rb4 {[%clk 0:00:09.6]} 52... Kf6
{[%clk 0:00:09.7]} 53. Rxe4 {[%clk 0:00:09.4]} 53... Bxe4 {[%clk 0:00:10.6]} 54.
Kxe4 {[%clk 0:00:10.3]} 54... Ke6 {[%clk 0:00:11.3]} 55. f5+ {[%clk 0:00:10.6]}
55... Kf6 {[%clk 0:00:12.2]} 56. Kf4 {[%clk 0:00:11.3]} 56... Kf7 {[%clk
0:00:12]} 57. Ke5 {[%clk 0:00:11.9]} 57... Kg7 {[%clk 0:00:12.9]} 58. Ke6 {[%clk
0:00:12.1]} 58... Kh6 {[%clk 0:00:12.8]} 59. f6 {[%clk 0:00:11.2]} 1-0

[Event "*** SCC Grand Prix: Titled Tuesday Blitz"]
[Site "Chess.com"]
[Date "2020.07.14"]
[Round "2"]
[White "KingCrusher275"]
[Black "pfalcon1949"]
[Result "1/2-1/2"]
[WhiteElo "2367"]
[BlackElo "2078"]
[TimeControl "180+1"]
[EndTime "10:18:33 PDT"]
[Termination "Game drawn by repetition"]

1. d4 {[%clk 0:03:00.9]} 1... Nf6 {[%clk 0:02:57.5]} 2. c4 {[%clk 0:03:01]} 2...
e6 {[%clk 0:02:57.8]} 3. Nc3 {[%clk 0:03:01.1]} 3... Bb4 {[%clk 0:02:57.8]} 4.
Qc2 {[%clk 0:03:01.3]} 4... O-O {[%clk 0:02:57.4]} 5. a3 {[%clk 0:03:01.6]} 5...
Bxc3+ {[%clk 0:02:56.7]} 6. Qxc3 {[%clk 0:03:02.5]} 6... b6 {[%clk 0:02:55.8]}
7. Bg5 {[%clk 0:03:01.4]} 7... Bb7 {[%clk 0:02:52.7]} 8. f3 {[%clk 0:03:00.8]}
8... d6 {[%clk 0:02:53.1]} 9. e3 {[%clk 0:02:58.2]} 9... Nbd7 {[%clk 0:02:53.1]}
10. Bd3 {[%clk 0:02:58.3]} 10... Qe7 {[%clk 0:02:41.8]} 11. Ne2 {[%clk
0:02:55.7]} 11... e5 {[%clk 0:02:40.3]} 12. d5 {[%clk 0:02:42.1]} 12... Rfe8
{[%clk 0:02:21.9]} 13. O-O {[%clk 0:02:37.5]} 13... Nf8 {[%clk 0:02:00.5]} 14.
Ng3 {[%clk 0:02:29]} 14... Bc8 {[%clk 0:01:57]} 15. Ne4 {[%clk 0:02:17.9]} 15...
N8d7 {[%clk 0:01:52.8]} 16. Qc2 {[%clk 0:02:02.7]} 16... h6 {[%clk 0:01:48.5]}
17. Bh4 {[%clk 0:02:02.1]} 17... g5 {[%clk 0:01:44.4]} 18. Nxf6+ {[%clk
0:01:51.4]} 18... Nxf6 {[%clk 0:01:43.6]} 19. Bg3 {[%clk 0:01:48.4]} 19... Kg7
{[%clk 0:01:38]} 20. Rae1 {[%clk 0:01:44.3]} 20... Bb7 {[%clk 0:01:30.1]} 21. e4
{[%clk 0:01:41.6]} 21... c6 {[%clk 0:01:30.2]} 22. b4 {[%clk 0:01:38.4]} 22...
cxd5 {[%clk 0:01:29.3]} 23. cxd5 {[%clk 0:01:39.3]} 23... Rac8 {[%clk
0:01:28.7]} 24. Qb2 {[%clk 0:01:39.7]} 24... Rc7 {[%clk 0:01:26.7]} 25. Rc1
{[%clk 0:01:39.8]} 25... Rec8 {[%clk 0:01:27.1]} 26. Bf2 {[%clk 0:01:35.8]}
26... Nh5 {[%clk 0:01:25.2]} 27. g3 {[%clk 0:01:29.3]} 27... Ba8 {[%clk
0:01:19.6]} 28. Be3 {[%clk 0:01:28.3]} 28... Bb7 {[%clk 0:01:19.1]} 29. Rxc7
{[%clk 0:01:16.4]} 29... Rxc7 {[%clk 0:01:14]} 30. Rc1 {[%clk 0:01:16.1]} 30...
Rxc1+ {[%clk 0:01:13.5]} 31. Qxc1 {[%clk 0:01:15.3]} 31... Qf6 {[%clk
0:01:12.4]} 32. Be2 {[%clk 0:01:13.1]} 32... Qe7 {[%clk 0:01:03]} 33. a4 {[%clk
0:01:11.2]} 33... Nf6 {[%clk 0:01:02.7]} 34. a5 {[%clk 0:01:09.7]} 34... bxa5
{[%clk 0:01:01.9]} 35. bxa5 {[%clk 0:01:09.4]} 35... a6 {[%clk 0:00:54.4]} 36.
Qb2 {[%clk 0:00:47.5]} 36... g4 {[%clk 0:00:51.5]} 37. Qb4 {[%clk 0:00:30.8]}
37... gxf3 {[%clk 0:00:48.4]} 38. Bxf3 {[%clk 0:00:30.9]} 38... Qd7 {[%clk
0:00:46.6]} 39. Be2 {[%clk 0:00:30.1]} 39... h5 {[%clk 0:00:35.4]} 40. Bf3
{[%clk 0:00:23.7]} 40... Kg6 {[%clk 0:00:32.9]} 41. Kg2 {[%clk 0:00:22.8]} 41...
Ng4 {[%clk 0:00:31.6]} 42. Bxg4 {[%clk 0:00:21.3]} 42... hxg4 {[%clk 0:00:29.4]}
43. Ba7 {[%clk 0:00:20.7]} 43... Bc8 {[%clk 0:00:24.5]} 44. Bb8 {[%clk
0:00:20.1]} 44... f5 {[%clk 0:00:19.7]} 45. Bxd6 {[%clk 0:00:16.5]} 45... fxe4
{[%clk 0:00:18.4]} 46. Qb6 {[%clk 0:00:14.8]} 46... Qf5 {[%clk 0:00:18.1]} 47.
Bxe5+ {[%clk 0:00:14.5]} 47... Kg5 {[%clk 0:00:14.6]} 48. Qe3+ {[%clk
0:00:13.9]} 48... Kg6 {[%clk 0:00:14.2]} 49. Qc3 {[%clk 0:00:12]} 49... Qf3+
{[%clk 0:00:13.9]} 50. Qxf3 {[%clk 0:00:12.1]} 50... exf3+ {[%clk 0:00:14.2]}
51. Kf2 {[%clk 0:00:12.6]} 51... Kf5 {[%clk 0:00:14.3]} 52. Bf4 {[%clk
0:00:12.7]} 52... Kf6 {[%clk 0:00:13.2]} 53. d6 {[%clk 0:00:13.1]} 53... Ke6
{[%clk 0:00:13.2]} 54. Ke3 {[%clk 0:00:13.3]} 54... Kd7 {[%clk 0:00:13.5]} 55.
h4 {[%clk 0:00:12.8]} 55... Kc6 {[%clk 0:00:13.5]} 56. h5 {[%clk 0:00:12.9]}
56... Bf5 {[%clk 0:00:14]} 57. h6 {[%clk 0:00:13.1]} 57... Bh7 {[%clk
0:00:13.5]} 58. Kf2 {[%clk 0:00:13.3]} 58... Kd7 {[%clk 0:00:14.2]} 59. Ke1
{[%clk 0:00:13.3]} 59... Kc6 {[%clk 0:00:15.1]} 60. Kf1 {[%clk 0:00:14]} 60...
Kd7 {[%clk 0:00:16]} 61. Kf2 {[%clk 0:00:13.5]} 61... Kc6 {[%clk 0:00:16.9]} 62.
Ke3 {[%clk 0:00:14]} 62... Kd7 {[%clk 0:00:17.8]} 63. Kd2 {[%clk 0:00:13.8]}
63... Kc6 {[%clk 0:00:18.7]} 64. Ke1 {[%clk 0:00:14.2]} 64... Kd7 {[%clk
0:00:19.6]} 65. Kf2 {[%clk 0:00:14.6]} 65... Kc6 {[%clk 0:00:20.5]} 66. Kf1
{[%clk 0:00:15.1]} 66... Kd7 {[%clk 0:00:21.4]} 67. Kf2 {[%clk 0:00:15.3]}
1/2-1/2

[Event "*** SCC Grand Prix: Titled Tuesday Blitz"]
[Site "Chess.com"]
[Date "2020.07.14"]
[Round "2"]
[White "Bossche-CM"]
[Black "Jungle_Jaguar"]
[Result "0-1"]
[WhiteElo "2454"]
[BlackElo "2668"]
[TimeControl "180+1"]
[EndTime "10:18:35 PDT"]
[Termination "Jungle_Jaguar won by resignation"]

1. e4 {[%clk 0:03:00.9]} 1... e5 {[%clk 0:02:55.6]} 2. Nf3 {[%clk 0:03:00.2]}
2... Nc6 {[%clk 0:02:55.8]} 3. Nc3 {[%clk 0:03:00.5]} 3... Nf6 {[%clk
0:02:55.8]} 4. d4 {[%clk 0:03:00.8]} 4... exd4 {[%clk 0:02:55.5]} 5. Nxd4 {[%clk
0:02:59.8]} 5... Bb4 {[%clk 0:02:55.3]} 6. Nxc6 {[%clk 0:02:59.6]} 6... bxc6
{[%clk 0:02:56.2]} 7. Bd3 {[%clk 0:02:58.5]} 7... O-O {[%clk 0:02:56.5]} 8. O-O
{[%clk 0:02:56.5]} 8... Re8 {[%clk 0:02:56.1]} 9. Bg5 {[%clk 0:02:47.3]} 9... h6
{[%clk 0:02:43.8]} 10. Bh4 {[%clk 0:02:45.3]} 10... g5 {[%clk 0:02:42.1]} 11.
Bg3 {[%clk 0:02:44.5]} 11... Bxc3 {[%clk 0:02:42.2]} 12. bxc3 {[%clk 0:02:44]}
12... Nxe4 {[%clk 0:02:42.7]} 13. Qh5 {[%clk 0:02:28.3]} 13... Qf6 {[%clk
0:02:33.4]} 14. f4 {[%clk 0:02:26.9]} 14... Qg7 {[%clk 0:01:41.6]} 15. Rae1
{[%clk 0:02:15.3]} 15... d5 {[%clk 0:01:40.2]} 16. f5 {[%clk 0:02:11.6]} 16...
Qf6 {[%clk 0:01:36.1]} 17. Bxc7 {[%clk 0:02:06.8]} 17... Bd7 {[%clk 0:01:23.3]}
18. c4 {[%clk 0:02:05.6]} 18... Rac8 {[%clk 0:01:11.8]} 19. Ba5 {[%clk
0:01:52.3]} 19... Qd4+ {[%clk 0:01:03]} 20. Kh1 {[%clk 0:01:49.6]} 20... Nf2+
{[%clk 0:01:01.8]} 21. Rxf2 {[%clk 0:01:46.9]} 21... Qxf2 {[%clk 0:01:01.8]} 22.
Rf1 {[%clk 0:01:10.3]} 22... Qh4 {[%clk 0:01:01.7]} 23. Qxh4 {[%clk 0:00:51.9]}
23... gxh4 {[%clk 0:01:00.8]} 24. cxd5 {[%clk 0:00:52.4]} 24... cxd5 {[%clk
0:01:01.3]} 25. f6 {[%clk 0:00:52.9]} 25... h3 {[%clk 0:00:52.8]} 26. gxh3
{[%clk 0:00:49.3]} 26... d4 {[%clk 0:00:31.6]} 27. Rg1+ {[%clk 0:00:47]} 27...
Kh8 {[%clk 0:00:32.2]} 28. Rg7 {[%clk 0:00:25.4]} 28... Bc6+ {[%clk 0:00:32.2]}
29. Kg1 {[%clk 0:00:25.6]} 29... Rg8 {[%clk 0:00:32.8]} 30. Rxg8+ {[%clk
0:00:24.6]} 30... Rxg8+ {[%clk 0:00:32.7]} 31. Kf1 {[%clk 0:00:25.1]} 31... Bg2+
{[%clk 0:00:32.6]} 32. Kf2 {[%clk 0:00:22.8]} 32... Bxh3 {[%clk 0:00:33]} 33.
Be4 {[%clk 0:00:23.4]} 33... Be6 {[%clk 0:00:31]} 34. Bd2 {[%clk 0:00:22.1]}
34... Bxa2 {[%clk 0:00:23.7]} 35. Bxh6 {[%clk 0:00:22]} 35... Rg4 {[%clk
0:00:24.1]} 36. Bf3 {[%clk 0:00:15.7]} 36... Rg6 {[%clk 0:00:21]} 37. Bg7+
{[%clk 0:00:14.6]} 37... Kg8 {[%clk 0:00:20.6]} 38. h4 {[%clk 0:00:15.5]} 38...
Rxg7 {[%clk 0:00:16]} 39. fxg7 {[%clk 0:00:14.9]} 39... Kxg7 {[%clk 0:00:16.9]}
40. Ke2 {[%clk 0:00:11.3]} 40... Bc4+ {[%clk 0:00:16.8]} 41. Kd2 {[%clk
0:00:11.8]} 41... a5 {[%clk 0:00:16.2]} 42. c3 {[%clk 0:00:11.9]} 42... d3
{[%clk 0:00:15.7]} 43. Be4 {[%clk 0:00:11.6]} 43... a4 {[%clk 0:00:15.5]} 44.
Bxd3 {[%clk 0:00:12]} 44... Bxd3 {[%clk 0:00:11.3]} 45. Kxd3 {[%clk 0:00:12.9]}
45... a3 {[%clk 0:00:11]} 46. Kc2 {[%clk 0:00:13]} 46... a2 {[%clk 0:00:10.7]}
47. Kb2 {[%clk 0:00:13.1]} 47... f5 {[%clk 0:00:11.4]} 48. c4 {[%clk 0:00:13.5]}
48... f4 {[%clk 0:00:12]} 49. c5 {[%clk 0:00:14.3]} 49... f3 {[%clk 0:00:12.6]}
50. c6 {[%clk 0:00:14.9]} 50... a1=Q+ {[%clk 0:00:11]} 51. Kxa1 {[%clk
0:00:14.5]} 51... f2 {[%clk 0:00:11.9]} 52. c7 {[%clk 0:00:15.1]} 52... f1=Q+
{[%clk 0:00:12.8]} 53. Kb2 {[%clk 0:00:15.6]} 53... Qc4 {[%clk 0:00:13.3]} 54.
h5 {[%clk 0:00:15.8]} 54... Qxc7 {[%clk 0:00:13.4]} 55. h6+ {[%clk 0:00:16.7]}
55... Kxh6 {[%clk 0:00:14.2]} 56. Kb3 {[%clk 0:00:16.8]} 56... Kg5 {[%clk
0:00:15.1]} 57. Kb4 {[%clk 0:00:17]} 57... Qc6 {[%clk 0:00:15.5]} 0-1

[Event "*** SCC Grand Prix: Titled Tuesday Blitz"]
[Site "Chess.com"]
[Date "2020.07.14"]
[Round "2"]
[White "GMHess"]
[Black "RenarddesSurfaces"]
[Result "1-0"]
[WhiteElo "2745"]
[BlackElo "2367"]
[TimeControl "180+1"]
[EndTime "10:18:36 PDT"]
[Termination "GMHess won on time"]

1. b3 {[%clk 0:03:00.9]} 1... d5 {[%clk 0:03:00]} 2. Bb2 {[%clk 0:03:01.8]} 2...
Bf5 {[%clk 0:03:00.6]} 3. h3 {[%clk 0:03:01.6]} 3... h6 {[%clk 0:03:00.1]} 4. d3
{[%clk 0:03:02.1]} 4... e6 {[%clk 0:03:00.2]} 5. Nd2 {[%clk 0:03:02.7]} 5... Nf6
{[%clk 0:03:00.4]} 6. Ngf3 {[%clk 0:03:01.2]} 6... c6 {[%clk 0:03:00.5]} 7. g4
{[%clk 0:03:01.6]} 7... Bh7 {[%clk 0:03:00.2]} 8. Bg2 {[%clk 0:03:02.2]} 8...
Be7 {[%clk 0:03:00.3]} 9. e3 {[%clk 0:03:02.2]} 9... Nbd7 {[%clk 0:03:00.7]} 10.
Qe2 {[%clk 0:03:02.8]} 10... a5 {[%clk 0:02:58.6]} 11. a3 {[%clk 0:03:02.4]}
11... Qc7 {[%clk 0:02:54.9]} 12. g5 {[%clk 0:03:02.3]} 12... hxg5 {[%clk
0:02:54]} 13. Nxg5 {[%clk 0:03:03.2]} 13... Bg6 {[%clk 0:02:54.2]} 14. O-O-O
{[%clk 0:02:56.8]} 14... O-O-O {[%clk 0:02:37.9]} 15. Rdg1 {[%clk 0:02:54.4]}
15... Kb8 {[%clk 0:02:31.1]} 16. f4 {[%clk 0:02:50.9]} 16... a4 {[%clk
0:02:29.1]} 17. b4 {[%clk 0:02:46.6]} 17... c5 {[%clk 0:02:29.3]} 18. b5 {[%clk
0:02:46.9]} 18... Qa5 {[%clk 0:02:21.4]} 19. Bf3 {[%clk 0:02:32.3]} 19... Qxb5
{[%clk 0:02:16.3]} 20. Nxe6 {[%clk 0:02:30.7]} 20... Rc8 {[%clk 0:01:30.9]} 21.
Nxg7 {[%clk 0:02:12.9]} 21... c4 {[%clk 0:01:31]} 22. dxc4 {[%clk 0:02:12]}
22... dxc4 {[%clk 0:01:31.9]} 23. f5 {[%clk 0:02:09.9]} 23... Bh7 {[%clk
0:01:30]} 24. Nb1 {[%clk 0:01:48.4]} 24... Bc5 {[%clk 0:01:23.2]} 25. Re1 {[%clk
0:01:17.7]} 25... Bf8 {[%clk 0:01:14.7]} 26. Nc3 {[%clk 0:00:59]} 26... Qa5
{[%clk 0:01:10.7]} 27. Nh5 {[%clk 0:00:54.4]} 27... Nxh5 {[%clk 0:01:04.8]} 28.
Bxh5 {[%clk 0:00:53.6]} 28... Bxa3 {[%clk 0:00:52]} 29. Bxa3 {[%clk 0:00:52.2]}
29... Qxc3 {[%clk 0:00:51.5]} 30. Bb2 {[%clk 0:00:52.7]} 30... Qb4 {[%clk
0:00:51.6]} 31. c3 {[%clk 0:00:37.5]} 31... Qb3 {[%clk 0:00:50.1]} 32. Qh2+
{[%clk 0:00:30]} 32... Ka8 {[%clk 0:00:44.2]} 33. Bd1 {[%clk 0:00:30.1]} 33...
Qa2 {[%clk 0:00:39.6]} 34. Qc2 {[%clk 0:00:30]} 34... Nc5 {[%clk 0:00:33.4]} 35.
Kd2 {[%clk 0:00:16.2]} 35... a3 {[%clk 0:00:16.5]} 36. Bxa3 {[%clk 0:00:09.4]}
36... Qxa3 {[%clk 0:00:13.7]} 37. Bf3 {[%clk 0:00:09.9]} 37... Nb3+ {[%clk
0:00:11.4]} 38. Ke2 {[%clk 0:00:10.3]} 38... Qc5 {[%clk 0:00:06.4]} 39. Qe4
{[%clk 0:00:07.6]} 39... Rc7 {[%clk 0:00:05]} 40. Ra1+ {[%clk 0:00:05.8]} 40...
Kb8 {[%clk 0:00:05]} 41. Ra4 {[%clk 0:00:04.7]} 41... Re7 {[%clk 0:00:04.4]} 42.
Qf4+ {[%clk 0:00:04]} 42... Qe5 {[%clk 0:00:04.3]} 43. Qxe5+ {[%clk 0:00:02.2]}
43... Rxe5 {[%clk 0:00:05.2]} 44. Rb4 {[%clk 0:00:02.6]} 44... b5 {[%clk
0:00:05.4]} 45. Bc6 {[%clk 0:00:02.4]} 45... Kc7 {[%clk 0:00:04.8]} 46. Bxb5
{[%clk 0:00:02.8]} 46... Rb8 {[%clk 0:00:04.8]} 47. Rxc4+ {[%clk 0:00:02.3]}
47... Kd6 {[%clk 0:00:03]} 48. Rd1+ {[%clk 0:00:02.5]} 48... Ke7 {[%clk
0:00:02.9]} 49. Rc7+ {[%clk 0:00:03.2]} 49... Kf8 {[%clk 0:00:03]} 50. Bc4
{[%clk 0:00:03.9]} 1-0